fUSD/lending_fUSD_20240803
["ID","MTS","AMOUNT","RATE_DAILY","PERIOD"]
[333985745,1722666691958,-1267.48,0.00016986,2]
[333985746,1722666691967,-151.0,0.00016986,2]
[333985747,1722666691976,-500.0,0.00016986,2]
[333985748,1722666691985,-505.33133106,0.00016986,2]
[333985749,1722666691995,-500.0,0.00016986,2]
[333985750,1722666692004,-500.0,0.00016986,2]
[333985751,1722666692014,-513.30565015,0.00016986,2]
[333985752,1722666692023,-500.0,0.00016986,2]
[333985753,1722666692033,-492.61498164,0.00016986,2]
[333985754,1722666692042,-500.0,0.00016986,2]
[333985755,1722666692051,-500.0,0.00016986,2]
[333985756,1722666692060,-500.0,0.00016986,2]
[333985757,1722666692069,-1285.81,0.00016986,2]
[333985758,1722666692079,-500.0,0.00016986,2]
[333985759,1722666692088,-1985.89,0.00016986,2]
[333985760,1722666692097,-500.0,0.00016986,2]
[333985761,1722666692106,-500.0,0.00016986,2]
[333985762,1722666692116,-1048.81,0.00016986,2]
[333985763,1722666692126,-500.0,0.00016986,2]
[333985764,1722666692135,-770.94,0.00016986,2]
[333985765,1722666692144,-500.0,0.00016986,2]
[333985766,1722666692155,-648.16,0.00016986,2]
[333985767,1722666692166,-503.78376854,0.00016986,2]
[333985768,1722666692176,-1630.37,0.00016986,2]
[333985769,1722666692186,-500.0,0.00016986,2]
[333985770,1722666692198,-500.0,0.00016986,2]
[333985771,1722666692207,-500.0,0.00016986,2]
[333985772,1722666692216,-942.02,0.00016986,2]
[333985773,1722666692225,-500.0,0.00016986,2]
[333985774,1722666692234,-500.0,0.00016986,2]
[333985775,1722666692244,-500.0,0.00016986,2]
[333985776,1722666692255,-500.0,0.00016986,2]
[333985777,1722666692266,-500.0,0.00016986,2]
[333985778,1722666692275,-500.0,0.00016986,2]
[333985779,1722666692284,-500.0,0.00016986,2]
[333985780,1722666692294,-500.0,0.00016986,2]
[333985781,1722666692303,-182.933451,0.00016986,2]
[333985782,1722666692312,-182.933451,0.00016986,2]
[333985783,1722666692321,-702.76,0.00016986,2]
[333985784,1722666692330,-165.983868,0.00016986,2]
[333985785,1722666692339,-500.0,0.00016986,2]
[333985786,1722666692348,-165.983868,0.00016986,2]
[333985787,1722666692357,-479.34109873,0.00016986,2]
[333985788,1722666692367,-500.0,0.00016986,2]
[333985789,1722666692376,-182.933451,0.00016986,2]
[333985790,1722666692385,-500.0,0.00016986,2]
[333985791,1722666692395,-500.0,0.00016986,2]
[333985792,1722666692405,-182.933451,0.00016986,2]
[333985793,1722666692414,-196.885044,0.00016986,2]
[333985794,1722666692423,-196.885044,0.00016986,2]
[333985795,1722666692433,-500.0,0.00016986,2]
[333985796,1722666692444,-500.0,0.00016986,2]
[333985797,1722666692453,-302.276463,0.00016986,2]
[333985798,1722666692462,-165.983868,0.00016986,2]
[333985799,1722666692472,-165.983868,0.00016986,2]
[333985800,1722666692481,-302.276463,0.00016986,2]
[333985801,1722666692491,-488.4677744,0.00016986,2]
[333985802,1722666692500,-500.0,0.00016986,2]
[333985803,1722666692510,-196.885044,0.00016986,2]
[333985804,1722666692519,-1612.19,0.00016986,2]
[333985805,1722666692528,-196.885044,0.00016986,2]
[333985806,1722666692537,-500.0,0.00016986,2]
[333985807,1722666692547,-516.72699008,0.00016986,2]
[333985808,1722666692556,-500.0,0.00016986,2]
[333985809,1722666692565,-500.0,0.00016986,2]
[333985810,1722666692574,-1146.11,0.00016986,2]
[333985811,1722666692583,-500.0,0.00016986,2]
[333985812,1722666692592,-302.276463,0.00016986,2]
[333985813,1722666692601,-302.276463,0.00016986,2]
[333985814,1722666692611,-500.0,0.00016986,2]
[333985815,1722666692621,-764.88,0.00016986,2]
[333985816,1722666692631,-500.0,0.00016986,2]
[333985817,1722666692644,-500.0,0.00016986,2]
[333985818,1722666692654,-151.0,0.00016986,2]
[333985819,1722666692663,-151.0,0.00016986,2]
[333985820,1722666692673,-500.0,0.00016986,2]
[333985821,1722666692682,-500.0,0.00016986,2]
[333985822,1722666692693,-1869.99,0.00016986,2]
[333985823,1722666692706,-1937.58,0.00016986,2]
[333985824,1722666692716,-500.0,0.00016986,2]
[333985825,1722666692725,-502.42735036,0.00016986,2]
[333985826,1722666692735,-1092.19,0.00016986,2]
[333985827,1722666692744,-500.0,0.00016986,2]
[333985828,1722666692753,-500.0,0.00016986,2]
[333985829,1722666692763,-500.0,0.00016986,2]
[333985830,1722666692772,-1144.97,0.00016986,2]
[333985831,1722666692782,-1286.39,0.00016986,2]
[333985832,1722666692791,-500.0,0.00016986,2]
[333985833,1722666692800,-509.12847179,0.00016986,2]
[333985834,1722666692810,-500.0,0.00016986,2]
[333985835,1722666692819,-500.0,0.00016986,2]
[333985836,1722666692828,-509.47471733,0.00016986,2]
[333985837,1722666692838,-1257.28,0.00016986,2]
[333985838,1722666692846,-500.0,0.00016986,2]
[333985839,1722666692856,-500.0,0.00016986,2]
[333985840,1722666692865,-575.74,0.00016986,2]
[333985841,1722666692874,-500.0,0.00016986,2]
[333985842,1722666692883,-790.36,0.00016986,2]
[333985843,1722666692892,-500.0,0.00016986,2]
[333985844,1722666692901,-1056.65,0.00016986,2]
[333985845,1722666692911,-682.23,0.00016986,2]
[333985846,1722666692920,-500.0,0.00016986,2]
[333985847,1722666692930,-500.0,0.00016986,2]
[333985848,1722666692939,-831.9,0.00016986,2]
[333985849,1722666692949,-500.0,0.00016986,2]
[333985850,1722666692959,-1274.51,0.00016986,2]
[333985851,1722666692968,-506.49944789,0.00016986,2]
[333985852,1722666692977,-971.42,0.00016986,2]
[333985853,1722666692986,-259.13432578,0.00016986,2]
[333985854,1722666692995,-1312.76,0.00016986,2]
[333985855,1722666693004,-500.0,0.00016986,2]
[333985856,1722666693013,-151.0,0.00016986,2]
[333985857,1722666693022,-500.0,0.00016986,2]
[333985858,1722666693032,-151.0,0.00016986,2]
[333985859,1722666693041,-539.15736415,0.00016986,2]
[333985860,1722666693050,-500.0,0.00016986,2]
[333985861,1722666693060,-500.0,0.00016986,2]
[333985862,1722666693069,-500.0,0.00016986,2]
[333985863,1722666693079,-500.0,0.00016986,2]
[333985864,1722666693088,-500.0,0.00016986,2]
[333985865,1722666693098,-500.0,0.00016986,2]
[333985866,1722666693107,-500.0,0.00016986,2]
[333985867,1722666693116,-500.0,0.00016986,2]
[333985868,1722666693126,-500.0,0.00016986,2]
[333985869,1722666693135,-1074.3,0.00016986,2]
[333985870,1722666693144,-500.0,0.00016986,2]
[333985871,1722666693153,-500.0,0.00016986,2]
[333985872,1722666693162,-522.45610926,0.00016986,2]
[333985873,1722666693172,-500.0,0.00016986,2]
[333985874,1722666693181,-634.32,0.00016986,2]
[333985875,1722666693193,-500.0,0.00016986,2]
[333985876,1722666693203,-564.14,0.00016986,2]
[333985877,1722666693213,-500.0,0.00016986,2]
[333985878,1722666693222,-786.52,0.00016986,2]
[333985879,1722666693232,-500.0,0.00016986,2]
[333985880,1722666693242,-500.0,0.00016986,2]
[333985881,1722666693251,-500.0,0.00016986,2]
[333985882,1722666693260,-500.0,0.00016986,2]
[333985883,1722666693270,-1029.12,0.00016986,2]
[333985884,1722666693280,-500.0,0.00016986,2]
[333985885,1722666693289,-500.0,0.00016986,2]
[333985886,1722666693299,-514.64872038,0.00016986,2]
[333985887,1722666693308,-837.07,0.00016986,2]
[333985888,1722666693318,-1796.88,0.00016986,2]
[333985889,1722666693327,-500.0,0.00016986,2]
[333985890,1722666693336,-1732.55,0.00016986,2]
[333985891,1722666693346,-500.0,0.00016986,2]
[333985892,1722666693355,-500.0,0.00016986,2]
[333985893,1722666693364,-1247.970465,0.00016986,2]
[333985894,1722666693374,-580.27499,0.00016986,2]
[333985895,1722666693383,-1247.970465,0.00016986,2]
[333985896,1722666693392,-500.0,0.00016986,2]
[333985897,1722666693401,-580.27499,0.00016986,2]
[333985898,1722666693411,-503.60231217,0.00016986,2]
[333985899,1722666693420,-500.0,0.00016986,2]
[333985900,1722666693430,-174.26607,0.00016986,2]
[333985901,1722666693440,-174.26607,0.00016986,2]
[333985902,1722666693449,-1573.42,0.00016986,2]
[333985903,1722666693458,-500.0,0.00016986,2]
[333985904,1722666693468,-1247.970465,0.00016986,2]
[333985905,1722666693477,-1247.970465,0.00016986,2]
[333985906,1722666693487,-580.27499,0.00016986,2]
[333985907,1722666693496,-580.27499,0.00016986,2]
[333985908,1722666693506,-500.0,0.00016986,2]
[333985909,1722666693515,-500.0,0.00016986,2]
[333985910,1722666693524,-174.26607,0.00016986,2]
[333985911,1722666693534,-174.26607,0.00016986,2]
[333985912,1722666693543,-500.0,0.00016986,2]
[333985913,1722666693553,-854.91,0.00016986,2]
[333985914,1722666693562,-1076.12,0.00016986,2]
[333985915,1722666693571,-500.0,0.00016986,2]
[333985916,1722666693581,-500.0,0.00016986,2]
[333985917,1722666693591,-500.0,0.00016986,2]
[333985918,1722666693600,-500.0,0.00016986,2]
[333985919,1722666693610,-500.0,0.00016986,2]
[333985920,1722666693620,-737.63,0.00016986,2]
[333985921,1722666693629,-500.0,0.00016986,2]
[333985922,1722666693641,-500.0,0.00016986,2]
[333985923,1722666693651,-1711.13,0.00016986,2]
[333985924,1722666693660,-151.0,0.00016986,2]
[333985925,1722666693669,-151.0,0.00016986,2]
[333985926,1722666693679,-504.75095139,0.00016986,2]
[333985927,1722666693689,-500.0,0.00016986,2]
[333985928,1722666693698,-500.0,0.00016986,2]
[333985929,1722666693709,-500.0,0.00016986,2]
[333985930,1722666693719,-500.0,0.00016986,2]
[333985931,1722666693730,-599.32,0.00016986,2]
[333985932,1722666693739,-151.0,0.00016986,2]
[333985933,1722666693748,-1490.49,0.00016986,2]
[333985934,1722666693757,-151.0,0.00016986,2]
[333985935,1722666693766,-500.0,0.00016986,2]
[333985936,1722666693776,-500.0,0.00016986,2]
[333985937,1722666693785,-500.0,0.00016986,2]
[333985938,1722666693794,-151.0,0.00016986,2]
[333985939,1722666693803,-151.0,0.00016986,2]
[333985940,1722666693812,-500.0,0.00016986,2]
[333985941,1722666693821,-500.0,0.00016986,2]
[333985942,1722666693830,-686.99,0.00016986,2]
[333985943,1722666693839,-500.0,0.00016986,2]
[333985944,1722666693849,-683.87,0.00016986,2]
[333985945,1722666693858,-941.41,0.00016986,2]
[333985946,1722666693867,-151.0,0.00016986,2]
[333985947,1722666693877,-151.0,0.00016986,2]
[333985948,1722666693887,-500.0,0.00016986,2]
[333985949,1722666693896,-500.0,0.00016986,2]
[333985950,1722666693906,-151.0,0.00016986,2]
[333985951,1722666693916,-500.0,0.00016986,2]
[333985952,1722666693926,-252.704634,0.00016986,2]
[333985953,1722666693937,-500.0,0.00016986,2]
[333985954,1722666693947,-506.14549499,0.00016986,2]
[333985955,1722666693957,-925.99,0.00016986,2]
[333985956,1722666693968,-500.0,0.00016986,2]
[333985957,1722666693978,-500.0,0.00016986,2]
[333985958,1722666693989,-190.08714232,0.00016986,2]
[333985959,1722666693999,-518.33,0.00016986,2]
[333985960,1722666694008,-500.0,0.00016986,2]
[333985961,1722666694018,-526.0267365,0.00016986,2]
[333985962,1722666694028,-500.0,0.00016986,2]
[333985963,1722666694038,-1190.09,0.00016986,2]
[333985964,1722666694048,-500.0,0.00016986,2]
[333985965,1722666694057,-500.0,0.00016986,2]
[333985966,1722666694067,-500.0,0.00016986,2]
[333985967,1722666694077,-500.0,0.00016986,2]
[333985968,1722666694087,-775.59,0.00016986,2]
[333985969,1722666694096,-850.78,0.00016986,2]
[333985970,1722666694106,-500.0,0.00016986,2]
[333985971,1722666694116,-283.714507,0.00016986,2]
[333985972,1722666694126,-500.0,0.00016986,2]
[333985973,1722666694135,-500.0,0.00016986,2]
[333985974,1722666694146,-1150.61,0.00016986,2]
[333985975,1722666694156,-500.0,0.00016986,2]
[333985976,1722666694166,-500.0,0.00016986,2]
[333985977,1722666694176,-500.0,0.00016986,2]
[333985978,1722666694186,-412.1241609,0.00016986,2]
[333985979,1722666694199,-1249.02,0.00016986,2]
[333985980,1722666694209,-500.0,0.00016986,2]
[333985981,1722666694219,-500.0,0.00016986,2]
[333985982,1722666694230,-1183.94,0.00016986,2]
[333985983,1722666694239,-500.0,0.00016986,2]
[333985984,1722666694249,-500.0,0.00016986,2]
[333985985,1722666694258,-980.506918,0.00016986,2]
[333985986,1722666694268,-500.0,0.00016986,2]
[333985987,1722666694278,-980.506918,0.00016986,2]
[333985988,1722666694288,-714.61,0.00016986,2]
[333985989,1722666694297,-164.92012,0.00016986,2]
[333985990,1722666694307,-164.92012,0.00016986,2]
[333985991,1722666694316,-500.0,0.00016986,2]
[333985992,1722666694326,-500.0,0.00016986,2]
[333985993,1722666694336,-980.506918,0.00016986,2]
[333985994,1722666694346,-980.506918,0.00016986,2]
[333985995,1722666694356,-164.92012,0.00016986,2]
[333985996,1722666694365,-164.92012,0.00016986,2]
[333985997,1722666694375,-619.81,0.00016986,2]
[333985998,1722666694384,-1551.65,0.00016986,2]
[333985999,1722666694394,-1412.03,0.00016986,2]
[333986000,1722666694404,-557.22,0.00016986,2]
[333986001,1722666694413,-500.0,0.00016986,2]
[333986002,1722666694423,-500.0,0.00016986,2]
[333986003,1722666694433,-500.0,0.00016986,2]
[333986004,1722666694445,-500.0,0.00016986,2]
[333986005,1722666694459,-500.0,0.00016986,2]
[333986006,1722666694469,-901.04,0.00016986,2]
[333986007,1722666694479,-1086.27,0.00016986,2]
[333986008,1722666694489,-1245.11,0.00016986,2]
[333986009,1722666694501,-500.0,0.00016986,2]
[333986010,1722666694511,-500.0,0.00016986,2]
[333986011,1722666694522,-500.0,0.00016986,2]
[333986012,1722666694533,-829.01,0.00016986,2]
[333986013,1722666694543,-563.09,0.00016986,2]
[333986014,1722666694553,-500.0,0.00016986,2]
[333986015,1722666694564,-523.94,0.00016986,2]
[333986016,1722666694574,-500.0,0.00016986,2]
[333986017,1722666694585,-554.91,0.00016986,2]
[333986018,1722666694595,-500.0,0.00016986,2]
[333986019,1722666694605,-151.0,0.00016986,2]
[333986020,1722666694614,-151.0,0.00016986,2]
[333986021,1722666694624,-500.0,0.00016986,2]
[333986022,1722666694636,-372.150765,0.00016986,2]
[333986023,1722666694649,-372.150765,0.00016986,2]
[333986024,1722666694659,-783.81,0.00016986,2]
[333986025,1722666694669,-500.0,0.00016986,2]
[333986026,1722666694681,-500.0,0.00016986,2]
[333986027,1722666694695,-151.0,0.00016986,2]
[333986028,1722666694705,-1346.52,0.00016986,2]
[333986029,1722666694716,-151.0,0.00016986,2]
[333986030,1722666694726,-372.150765,0.00016986,2]
[333986031,1722666694736,-372.150765,0.00016986,2]
[333986032,1722666694746,-1087.56,0.00016986,2]
[333986033,1722666694755,-151.0,0.00016986,2]
[333986034,1722666694764,-500.0,0.00016986,2]
[333986035,1722666694774,-151.0,0.00016986,2]
[333986036,1722666694784,-1404.5,0.00016986,2]
[333986037,1722666694793,-500.0,0.00016986,2]
[333986038,1722666694803,-500.0,0.00016986,2]
[333986039,1722666694812,-500.0,0.00016986,2]
[333986040,1722666694822,-500.0,0.00016986,2]
[333986041,1722666694831,-500.0,0.00016986,2]
[333986042,1722666694842,-500.0,0.00016986,2]
[333986043,1722666694851,-1999.59,0.00016986,2]
[333986044,1722666694860,-500.0,0.00016986,2]
[333986045,1722666694870,-669.89,0.00016986,2]
[333986046,1722666694880,-500.0,0.00016986,2]
[333986047,1722666694889,-500.0,0.00016986,2]
[333986048,1722666694898,-500.0,0.00016986,2]
[333986049,1722666694908,-500.0,0.00016986,2]
[333986050,1722666694917,-500.0,0.00016986,2]
[333986051,1722666694927,-500.0,0.00016986,2]
[333986052,1722666694937,-791.15,0.00016986,2]
[333986053,1722666694949,-1652.52,0.00016986,2]
[333986054,1722666694959,-152.082932,0.00016986,2]
[333986055,1722666694968,-152.082932,0.00016986,2]
[333986056,1722666694977,-500.0,0.00016986,2]
[333986057,1722666694987,-500.0,0.00016986,2]
[333986058,1722666694997,-507.61593145,0.00016986,2]
[333986059,1722666695007,-936.75,0.00016986,2]
[333986060,1722666695016,-500.0,0.00016986,2]
[333986061,1722666695026,-152.082932,0.00016986,2]
[333986062,1722666695035,-1126.33,0.00016986,2]
[333986063,1722666695045,-152.082932,0.00016986,2]
[333986064,1722666695055,-500.0,0.00016986,2]
[333986065,1722666695065,-500.0,0.00016986,2]
[333986066,1722666695075,-500.0,0.00016986,2]
[333986067,1722666695084,-500.0,0.00016986,2]
[333986068,1722666695094,-500.0,0.00016986,2]
[333986069,1722666695106,-1115.3,0.00016986,2]
[333986070,1722666695116,-500.0,0.00016986,2]
[333986071,1722666695125,-1818.33,0.00016986,2]
[333986072,1722666695135,-500.0,0.00016986,2]
[333986073,1722666695146,-621.62,0.00016986,2]
[333986074,1722666695157,-500.0,0.00016986,2]
[333986075,1722666695167,-151.0,0.00016986,2]
[333986076,1722666695177,-151.0,0.00016986,2]
[333986077,1722666695186,-500.0,0.00016986,2]
[333986078,1722666695198,-814.86,0.00016986,2]
[333986079,1722666695207,-151.0,0.00016986,2]
[333986080,1722666695217,-151.0,0.00016986,2]
[333986081,1722666695227,-500.0,0.00016986,2]
[333986082,1722666695236,-764.75,0.00016986,2]
[333986083,1722666695246,-500.0,0.00016986,2]
[333986084,1722666695256,-500.0,0.00016986,2]
[333986085,1722666695265,-721.8,0.00016986,2]
[333986086,1722666695275,-500.0,0.00016986,2]
[333986087,1722666695285,-500.0,0.00016986,2]
[333986088,1722666695295,-500.0,0.00016986,2]
[333986089,1722666695305,-500.0,0.00016986,2]
[333986090,1722666695315,-151.0,0.00016986,2]
[333986091,1722666695324,-151.0,0.00016986,2]
[333986092,1722666695334,-1488.46,0.00016986,2]
[333986093,1722666695344,-500.0,0.00016986,2]
[333986094,1722666695354,-500.0,0.00016986,2]
[333986095,1722666695363,-500.0,0.00016986,2]
[333986096,1722666695374,-1556.25,0.00016986,2]
[333986097,1722666695384,-500.0,0.00016986,2]
[333986098,1722666695393,-500.0,0.00016986,2]
[333986099,1722666695403,-500.0,0.00016986,2]
[333986100,1722666695413,-930.37,0.00016986,2]
[333986101,1722666695423,-541.23,0.00016986,2]
[333986102,1722666695432,-1099.96,0.00016986,2]
[333986103,1722666695442,-500.0,0.00016986,2]
[333986104,1722666695451,-862.02,0.00016986,2]
[333986105,1722666695461,-500.0,0.00016986,2]
[333986106,1722666695471,-782.39,0.00016986,2]
[333986107,1722666695481,-375.46135499,0.00016986,2]
[333986108,1722666695491,-500.0,0.00016986,2]
[333986109,1722666695500,-665.68,0.00016986,2]
[333986110,1722666695510,-500.0,0.00016986,2]
[333986111,1722666695520,-500.0,0.00016986,2]
[333986112,1722666695530,-231.696466,0.00016986,2]
[333986113,1722666695540,-500.0,0.00016986,2]
[333986114,1722666695549,-231.696466,0.00016986,2]
[333986115,1722666695559,-151.0,0.00016986,2]
[333986116,1722666695569,-500.0,0.00016986,2]
[333986117,1722666695579,-151.0,0.00016986,2]
[333986118,1722666695588,-500.0,0.00016986,2]
[333986119,1722666695598,-500.0,0.00016986,2]
[333986120,1722666695607,-500.0,0.00016986,2]
[333986121,1722666695617,-231.696466,0.00016986,2]
[333986122,1722666695627,-660.12,0.00016986,2]
[333986123,1722666695637,-708.64,0.00016986,2]
[333986124,1722666695649,-231.696466,0.00016986,2]
[333986125,1722666695660,-500.0,0.00016986,2]
[333986126,1722666695669,-171.906545,0.00016986,2]
[333986127,1722666695679,-151.0,0.00016986,2]
[333986128,1722666695690,-151.0,0.00016986,2]
[333986129,1722666695699,-709.52,0.00016986,2]
[333986130,1722666695709,-500.0,0.00016986,2]
[333986131,1722666695721,-510.64,0.00016986,2]
[333986132,1722666695732,-500.0,0.00016986,2]
[333986133,1722666695742,-681.92,0.00016986,2]
[333986134,1722666695752,-499.91,0.00016986,2]
[333986135,1722666695761,-500.0,0.00016986,2]
[333986136,1722666695771,-500.0,0.00016986,2]
[333986137,1722666695780,-151.0,0.00016986,2]
[333986138,1722666695790,-151.0,0.00016986,2]
[333986139,1722666695799,-500.0,0.00016986,2]
[333986140,1722666695809,-500.0,0.00016986,2]
[333986141,1722666695819,-500.0,0.00016986,2]
[333986142,1722666695828,-500.0,0.00016986,2]
[333986143,1722666695838,-1423.39,0.00016986,2]
[333986144,1722666695848,-500.0,0.00016986,2]
[333986145,1722666695858,-500.0,0.00016986,2]
[333986146,1722666695869,-2130.919257,0.00016986,2]
[333986147,1722666695879,-500.0,0.00016986,2]
[333986148,1722666695888,-500.0,0.00016986,2]
[333986149,1722666695898,-2130.919257,0.00016986,2]
[333986150,1722666695909,-3672.91,0.00016986,2]
[333986151,1722666695920,-500.0,0.00016986,2]
[333986152,1722666695931,-796.7,0.00016986,2]
[333986153,1722666695942,-500.0,0.00016986,2]
[333986154,1722666695952,-500.0,0.00016986,2]
[333986155,1722666695962,-714.52,0.00016986,2]
[333986156,1722666695973,-2130.919257,0.00016986,2]
[333986157,1722666695983,-2042.73,0.00016986,2]
[333986158,1722666695993,-500.0,0.00016986,2]
[333986159,1722666696003,-2130.919257,0.00016986,2]
[333986160,1722666696013,-500.0,0.00016986,2]
[333986161,1722666696024,-552.5,0.00016986,2]
[333986162,1722666696035,-1054.46,0.00016986,2]
[333986163,1722666696045,-500.0,0.00016986,2]
[333986164,1722666696056,-500.0,0.00016986,2]
[333986165,1722666696066,-2805.89,0.00016986,2]
[333986166,1722666696076,-528.79489685,0.00016986,2]
[333986167,1722666696086,-500.0,0.00016986,2]
[333986168,1722666696095,-1433.51,0.00016986,2]
[333986169,1722666696106,-675.88,0.00016986,2]
[333986170,1722666696117,-500.0,0.00016986,2]
[333986171,1722666696127,-1088.81,0.00016986,2]
[333986172,1722666696139,-4007.83,0.00016986,2]
[333986173,1722666696150,-3217.66,0.00016986,2]
[333986174,1722666696160,-500.0,0.00016986,2]
[333986175,1722666696169,-762.84,0.00016986,2]
[333986176,1722666696179,-500.0,0.00016986,2]
[333986177,1722666696189,-500.0,0.00016986,2]
[333986178,1722666696200,-500.0,0.00016986,2]
[333986179,1722666696210,-2200.75,0.00016986,2]
[333986180,1722666696222,-500.0,0.00016986,2]
[333986181,1722666696233,-506.46387825,0.00016986,2]
[333986182,1722666696244,-502.85535651,0.00016986,2]
[333986183,1722666696254,-151.0,0.00016986,2]
[333986184,1722666696265,-151.0,0.00016986,2]
[333986185,1722666696275,-951.76,0.00016986,2]
[333986186,1722666696284,-1702.58,0.00016986,2]
[333986187,1722666696294,-512.09267535,0.00016986,2]
[333986188,1722666696304,-500.0,0.00016986,2]
[333986189,1722666696314,-151.0,0.00016986,2]
[333986190,1722666696324,-2092.77,0.00016986,2]
[333986191,1722666696334,-500.0,0.00016986,2]
[333986192,1722666696344,-247.1956,0.00016986,2]
[333986193,1722666696354,-500.0,0.00016986,2]
[333986194,1722666696364,-1018.959212,0.00016986,2]
[333986195,1722666696374,-1018.959212,0.00016986,2]
[333986196,1722666696384,-652.04,0.00016986,2]
[333986197,1722666696393,-500.0,0.00016986,2]
[333986198,1722666696403,-500.0,0.00016986,2]
[333986199,1722666696413,-500.0,0.00016986,2]
[333986200,1722666696422,-500.0,0.00016986,2]
[333986201,1722666696432,-5244.42,0.00016986,2]
[333986202,1722666696443,-710.45,0.00016986,2]
[333986203,1722666696462,-693.09,0.00016986,2]
[333986204,1722666696472,-500.0,0.00016986,2]
[333986205,1722666696482,-761.36,0.00016986,2]
[333986206,1722666696492,-2061.72,0.00016986,2]
[333986207,1722666696501,-500.0,0.00016986,2]
[333986208,1722666696511,-500.0,0.00016986,2]
[333986209,1722666696521,-4346.28,0.00016986,2]
[333986210,1722666696531,-2038.36,0.00016986,2]
[333986211,1722666696541,-567.61800293,0.00016986,2]
[333986212,1722666696551,-1018.959212,0.00016986,2]
[333986213,1722666696561,-1475.27,0.00016986,2]
[333986214,1722666696571,-1018.959212,0.00016986,2]
[333986215,1722666696581,-500.0,0.00016986,2]
[333986216,1722666696591,-744.05,0.00016986,2]
[333986217,1722666696601,-1223.68,0.00016986,2]
[333986218,1722666696611,-500.0,0.00016986,2]
[333986219,1722666696622,-1359.7,0.00016986,2]
[333986220,1722666696632,-500.0,0.00016986,2]
[333986221,1722666696646,-500.0,0.00016986,2]
[333986222,1722666696655,-4500.27,0.00016986,2]
[333986223,1722666696665,-514.56675584,0.00016986,2]
[333986224,1722666696936,-500.0,0.00016986,2]
[333986225,1722666696949,-694.666789,0.00016986,2]
[333986226,1722666696959,-842.12,0.00016986,2]
[333986227,1722666696968,-1729.93,0.00016986,2]
[333986228,1722666696978,-11630.47,0.00016986,2]
[333986229,1722666696987,-694.666789,0.00016986,2]
[333986230,1722666696996,-500.0,0.00016986,2]
[333986231,1722666697005,-7815.4,0.00016986,2]
[333986232,1722666697015,-1992.28,0.00016986,2]
[333986233,1722666697024,-500.0,0.00016986,2]
[333986234,1722666697034,-500.0,0.00016986,2]
[333986235,1722666697043,-872.75,0.00016986,2]
[333986236,1722666697052,-555.20713651,0.00016986,2]
[333986237,1722666697062,-694.666789,0.00016986,2]
[333986238,1722666697071,-1230.65,0.00016986,2]
[333986239,1722666697081,-694.666789,0.00016986,2]
[333986240,1722666697090,-1652.65,0.00016986,2]
[333986241,1722666697100,-500.0,0.00016986,2]
[333986242,1722666697110,-1417.26,0.00016986,2]
[333986243,1722666697119,-500.0,0.00016986,2]
[333986244,1722666697129,-500.0,0.00016986,2]